bitfinex-derivatives/quotes_ETHF0:USTF0_20240930
["timestamp","ask_amount","ask_price","bid_price","bid_amount"]
[1727711819543,6.62575,2603.0,2602.9,0.12397734]
[1727711819736,13.0113,2603.0,2601.9,1.50418358]
[1727711819931,2.78427,2602.2,2602.0,0.89735568]
[1727711820135,2.78427,2602.2,2602.0,0.38428]
[1727711820353,2.4,2602.2,2602.0,0.50825734]
[1727711820531,2.4,2602.2,2602.0,0.12397734]
[1727711820735,2.4,2602.2,2601.9,0.3843]
[1727711820937,2.4,2602.2,2601.8,0.91337734]
[1727711820938,3.78060674,2602.2,2601.8,0.91337734]
[1727711821138,2.4,2602.2,2602.1,0.38428]
[1727711821542,2.4,2602.2,2602.1,0.12397734]
[1727711821744,2.78427,2602.2,2602.1,0.12397734]
[1727711822437,3.39633674,2602.2,2601.6,1.99850651]
[1727711822645,2.78433,2601.8,2601.7,0.51281816]
[1727711823042,2.78433,2601.8,2601.7,1.0211355]
[1727711823249,9.83533,2601.8,2601.7,0.51281816]
[1727711823436,0.38434,2601.7,2601.6,0.10997293]
[1727711823635,0.38434,2601.7,2601.1,0.7562]
[1727711823636,3.844,2601.7,2601.4,0.38438]
[1727711823835,3.844,2601.7,2601.1,0.7562]
[1727711823836,0.38441,2601.3,2601.1,0.23447793]
[1727711824044,3.36092,2601.6,2601.1,0.50840734]
[1727711824045,2.4,2601.2,2601.1,0.50840734]
[1727711824237,2.4,2601.2,2601.1,0.12397734]
[1727711824445,2.4,2601.2,2601.1,0.50840734]
[1727711824747,3.8448,2601.2,2600.8,0.3858]
[1727711824945,0.99633674,2601.5,2600.8,0.50977734]
[1727711824946,2.4,2601.1,2600.8,0.50977734]
[1727711825250,1.49450511,2601.6,2601.0,3.2078]
[1727711825437,2.4,2601.5,2601.4,0.38438]
[1727711825641,2.4,2601.5,2601.0,3.33177734]
[1727711825943,2.4,2601.5,2601.4,0.38438]
[1727711826144,2.4,2601.7,2601.6,0.38435]
[1727711826549,2.4,2601.7,2601.6,0.50832734]
[1727711827148,2.4,2601.9,2601.6,3.33177734]
[1727711827647,2.4,2601.9,2601.8,0.38433]
[1727711827861,2.4,2602.0,2601.6,3.33177734]
[1727711828052,2.4,2601.7,2601.6,3.71612734]
[1727711828851,2.4,2602.0,2601.6,3.33177734]
[1727711829157,2.4,2602.0,2601.9,0.38431]
[1727711829842,2.4,2602.2,2601.9,0.12397734]
[1727711830041,5.6078,2602.4,2602.0,0.3966]
[1727711830247,5.6078,2602.4,2602.0,0.52057734]
[1727711830445,5.6078,2602.4,2602.3,0.38425]
[1727711830648,5.6078,2602.4,2602.2,0.38426]
[1727711830845,2.4,2602.4,2602.3,0.38425]
[1727711831042,2.4,2602.6,2602.3,0.38424]
[1727711831251,2.4,2602.6,2602.4,0.38423]
[1727711831555,2.78421,2602.6,2602.3,0.50821734]
[1727711831751,2.4,2602.6,2602.4,0.38423]
[1727711832155,2.4,2602.6,2602.5,0.38422]
[1727711832357,2.4,2602.6,2602.4,0.12397734]
[1727711832545,2.4,2602.6,2602.5,0.38422]
[1727711833145,2.4,2602.6,2602.5,0.50819734]
[1727711833350,6.2424,2602.6,2602.5,0.38422]
[1727711833550,12.6248,2602.6,2602.4,0.38423]
[1727711833753,2.4,2602.5,2602.4,0.38422]
[1727711834251,2.4,2602.5,2602.4,0.50819734]
[1727711834462,3.2078,2602.7,2602.6,0.38421]
[1727711834644,2.4,2603.1,2602.6,3.2078]
[1727711834949,4.20413674,2603.2,2603.0,0.38415]
[1727711835151,3.78043674,2603.4,2603.1,0.38412]
[1727711835365,3.78043674,2603.4,2603.3,0.3841]
[1727711835366,3.39633674,2603.4,2603.3,0.3841]
[1727711835551,0.99633674,2603.5,2603.4,0.38409]
[1727711835752,4.20413674,2603.6,2603.5,0.38407]
[1727711835961,3.2078,2603.6,2603.5,0.38407]
[1727711836149,3.39633674,2603.8,2603.0,1.35486]
[1727711836150,2.4,2603.8,2603.2,3.2078]
[1727711836350,0.38405,2603.7,2603.2,4.16809]
[1727711836659,0.38405,2603.7,2603.6,0.38405]
[1727711837061,0.38405,2603.7,2603.6,0.50802734]
[1727711837360,2.4,2603.8,2603.6,0.50802734]
[1727711837657,3.39633674,2604.0,2603.6,0.12397734]
[1727711837955,1.99267348,2604.3,2603.9,0.38401]
[1727711837956,3.39633674,2604.3,2603.9,0.38401]
[1727711838255,3.39633674,2604.3,2603.6,0.12397734]
[1727711838256,0.38402,2603.9,2603.8,3.2078]
[1727711838460,0.38404,2603.7,2603.6,0.12397734]
[1727711838756,0.95999,2604.1,2603.6,0.12397734]
[1727711838757,0.38401,2604.0,2603.6,0.12397734]
[1727711838959,2.784,2604.1,2604.0,0.384]
[1727711839255,2.4,2604.3,2604.0,0.384]
[1727711839558,6.24,2604.3,2603.6,3.2078]
[1727711839758,0.38398,2604.2,2604.1,0.38398]
[1727711839946,2.78397,2604.3,2604.1,0.38398]
[1727711840149,2.4,2604.3,2603.6,3.2078]
[1727711840448,2.4,2604.0,2603.6,3.33177734]
[1727711840645,0.38402,2603.9,2603.6,3.33177734]
[1727711840849,0.38404,2603.8,2603.6,3.71582734]
[1727711841149,2.4,2604.0,2603.6,0.12397734]
[1727711841350,2.4,2604.0,2603.7,0.38404]
[1727711841550,2.4,2604.0,2603.6,0.12397734]
[1727711842151,2.784,2604.0,2603.6,0.12397734]
[1727711842361,3.3933403,2604.3,2603.6,3.33177734]
[1727711842756,0.38398,2604.2,2603.7,0.38404]
[1727711842950,0.38398,2604.2,2604.1,0.38398]
[1727711843148,7.0478,2604.2,2603.0,0.10879741]
[1727711843355,7.0478,2604.2,2603.6,0.38406]
[1727711843356,2.4,2603.7,2603.6,0.38406]
[1727711843558,0.38407,2603.6,2603.4,0.38409]
[1727711843753,0.38408,2603.5,2603.4,0.38408]
[1727711843952,2.4,2603.5,2603.1,0.3839]
[1727711844256,0.38412,2603.2,2603.1,0.12397734]
[1727711844654,0.38413,2603.1,2603.0,1.00180575]
[1727711847059,12.62573,2603.1,2603.0,1.00180575]
[1727711847959,12.62573,2603.1,2602.7,2.00361151]
[1727711847960,12.2416,2603.1,2602.7,2.00361151]
[1727711848258,12.2416,2603.1,2602.5,2.50451439]
[1727711848259,5.6078,2602.8,2601.9,3.50632014]
[1727711848562,5.6078,2602.8,2601.6,8.10094017]
[1727711848563,0.38432,2601.9,2601.6,3.99895]
[1727711848860,0.38432,2601.9,2601.6,4.12292734]
[1727711848861,2.4,2601.8,2601.6,4.12292734]
[1727711849168,2.4,2601.8,2601.7,0.38434]
[1727711849356,2.4,2602.1,2601.8,0.38432]
[1727711849557,0.3843,2602.0,2601.7,0.38433]
[1727711849764,2.4,2602.1,2601.7,0.12397734]
[1727711849765,0.38432,2601.9,2601.7,0.12397734]
[1727711849957,2.78432,2601.9,2601.7,0.12397734]
[1727711850264,0.38435,2601.7,2601.2,3.975]
[1727711850455,2.78432,2601.9,2601.6,0.38435]
[1727711850657,2.78432,2601.9,2601.7,0.38434]
[1727711850858,2.4,2601.9,2601.2,4.09897734]
[1727711851059,2.4,2601.9,2601.7,0.38434]
[1727711851261,2.4,2601.9,2601.2,5.05999734]
[1727711851558,2.78432,2601.9,2601.6,0.38435]
[1727711851758,4.1684,2602.4,2601.2,5.05999734]
[1727711851759,2.4,2602.1,2601.2,5.05999734]
[1727711851962,0.3843,2602.0,2601.8,0.38432]
[1727711852366,2.4,2602.1,2602.0,0.3843]
[1727711852562,2.78429,2602.1,2601.9,0.3843]
[1727711852858,3.8432,2602.0,2601.0,0.3838]
[1727711853060,2.4,2601.7,2601.2,1.35264]
[1727711853263,2.4,2601.7,2601.5,0.38436]
[1727711853264,2.78435,2601.7,2601.5,0.38436]
[1727711853455,6.62835,2601.7,2601.5,0.38436]
[1727711854166,2.78435,2601.7,2601.5,0.38436]
[1727711854470,6.62835,2601.7,2601.5,0.38436]
[1727711854663,0.38436,2601.6,2601.4,0.38438]
[1727711854862,2.78438,2601.5,2601.3,0.38439]
[1727711855064,0.38439,2601.4,2601.2,0.3844]
[1727711855367,0.3844,2601.4,2601.2,0.3844]
[1727711856063,2.4,2601.5,2601.0,3.2078]
[1727711856268,0.3844,2601.3,2601.1,0.38443]
[1727711856467,2.4,2601.5,2601.1,0.12397734]
[1727711856766,0.38439,2601.4,2601.2,0.3844]
[1727711857264,2.4,2601.5,2601.0,3.2078]
[1727711857468,0.3844,2601.3,2601.0,0.12397734]
[1727711857658,0.38447,2600.8,2600.7,3.2078]
[1727711857859,0.38447,2600.8,2600.6,0.38449]
[1727711858173,2.4,2600.9,2600.3,3.2078]
[1727711858174,3.8448,2600.7,2600.3,3.2078]
[1727711858476,0.38454,2600.4,2600.2,0.38455]
[1727711858667,2.78456,2600.2,2600.1,0.37]
[1727711858859,0.38458,2600.1,2600.0,3.4098]
[1727711859166,0.38458,2600.1,2600.0,0.202]
[1727711859367,10.23098,2600.1,2600.0,0.202]
[1727711859670,13.19098,2600.1,2600.0,0.202]
[1727711860174,1.92298,2600.0,2598.9,3.2078]
[1727711860376,2.96,2599.4,2598.9,3.33177734]
[1727711860560,3.2078,2599.7,2599.3,0.38469]
[1727711860561,3.34464,2599.7,2599.3,0.38469]
[1727711860875,2.96,2599.7,2599.3,0.38468]
[1727711861060,0.38466,2599.6,2599.3,0.50865734]
[1727711861376,0.38466,2599.6,2599.3,0.38469]
[1727711861671,2.96,2599.7,2598.9,3.2078]
[1727711861873,2.96,2599.7,2599.2,3.2078]
[1727711862064,3.2078,2600.0,2599.2,3.2078]
[1727711862264,3.2078,2600.0,2599.5,0.38466]
[1727711862265,0.38461,2599.9,2599.5,0.38466]
[1727711862467,3.2078,2600.0,2599.2,3.33177734]
[1727711862864,0.38464,2599.7,2599.4,0.38467]
[1727711863174,3.92156,2599.8,2599.2,0.12397734]
[1727711863365,0.38467,2599.5,2599.2,0.50868734]
[1727711863566,2.96,2599.8,2599.2,0.12397734]
[1727711863773,0.38465,2599.7,2599.2,0.12397734]
[1727711864068,0.38465,2599.6,2599.4,0.38468]
[1727711864276,2.96,2599.8,2599.4,0.12397734]
[1727711864574,0.38467,2599.5,2599.4,0.12397734]
[1727711864779,0.38464,2599.7,2599.5,0.38466]
[1727711864965,0.38465,2599.6,2599.4,0.50864734]
[1727711865367,0.38467,2599.5,2599.4,0.12397734]
[1727711865569,0.38464,2599.7,2599.5,0.38466]
[1727711865869,2.96,2599.8,2599.4,0.50864734]
[1727711866177,2.96,2599.5,2599.4,0.12397734]
[1727711866363,2.96,2599.5,2599.0,0.38]
[1727711866563,2.96,2599.5,2599.1,0.38472]
[1727711866772,0.3847,2599.3,2599.2,0.3847]
[1727711866983,2.96,2599.5,2599.0,0.50397734]
[1727711867172,2.96,2599.5,2599.1,0.38471]
[1727711867372,1.34639,2599.4,2599.0,0.88870734]
[1727711867572,0.38472,2599.2,2599.1,0.38472]
[1727711867776,0.38472,2599.1,2599.0,0.88871734]
[1727711868068,0.38472,2599.2,2599.1,0.38472]
[1727711868278,0.96171,2599.4,2599.0,0.50397734]
[1727711868477,0.38472,2599.2,2599.0,0.88870734]
[1727711868673,0.38472,2599.2,2599.1,0.38472]
[1727711868880,0.38472,2599.2,2599.0,0.38]
[1727711868881,2.96,2599.5,2599.0,0.50397734]
[1727711869375,3.34467,2599.5,2599.0,0.50397734]
[1727711869676,0.38469,2599.4,2599.3,0.38469]
[1727711869875,0.38469,2599.4,2599.3,0.50866734]
[1727711870078,0.38468,2599.4,2599.3,0.50866734]
[1727711870286,0.38468,2599.4,2599.3,0.12397734]
[1727711870478,0.38468,2599.4,2599.3,0.50866734]
[1727711870678,3.34467,2599.5,2599.4,0.38468]
[1727711870979,4.16941,2599.7,2599.3,0.12397734]
[1727711870980,3.2078,2599.7,2599.3,0.12397734]
[1727711871170,2.96,2599.8,2599.6,0.38465]
[1727711871372,3.34462,2599.8,2599.7,0.4002]
[1727711873084,2.96,2599.8,2599.7,0.90881734]
[1727711873475,0.3846,2600.0,2599.8,0.38462]
[1727711873676,3.34459,2600.1,2599.9,0.3846]
[1727711873881,3.34459,2600.1,2599.8,0.52847734]
[1727711874383,0.38459,2600.0,2599.9,0.38461]
[1727711874579,2.96,2600.1,2599.8,0.52847734]
[1727711874882,0.38461,2599.9,2599.8,0.91308734]
[1727711875070,2.96,2600.1,2599.8,0.52847734]
[1727711875278,0.38454,2600.4,2599.9,3.2078]
[1727711875476,0.38454,2600.4,2600.3,0.38455]
[1727711875693,0.38455,2600.3,2600.2,0.38455]
[1727711875874,0.38456,2600.2,2600.1,0.38457]
[1727711876180,2.96,2600.2,2600.0,0.38458]
[1727711876373,2.96,2600.2,2599.8,0.4045]
[1727711876581,0.38461,2599.9,2599.8,0.52847734]
[1727711876778,2.96,2600.0,2599.8,0.52847734]
[1727711876983,3.3446,2600.0,2599.8,0.91308734]
[1727711877391,0.38461,2599.9,2599.8,0.12057734]
[1727711877581,0.38461,2599.9,2597.3,3.2078]
[1727711877582,3.2078,2599.7,2597.3,3.2078]
[1727711877781,3.2078,2598.7,2598.2,0.3887]
[1727711877986,6.1678,2599.0,2598.3,0.7619]
[1727711878476,0.38476,2598.9,2598.4,0.38482]
[1727711878676,6.1678,2599.0,2598.3,0.7619]
[1727711878885,3.2078,2598.7,2598.5,0.3848]
[1727711879087,3.2078,2598.7,2598.3,0.7619]
[1727711879284,3.2078,2598.7,2598.4,0.38482]
[1727711879489,3.2078,2598.7,2598.3,1.14673]
[1727711879691,0.38485,2598.3,2597.8,0.38491]
[1727711879878,0.38483,2598.4,2597.9,0.38489]
[1727711880079,0.38485,2598.3,2597.8,0.38491]
[1727711880285,3.2078,2598.5,2597.9,0.3849]
[1727711880488,3.2078,2598.5,2597.7,0.3706]
[1727711880489,0.38485,2598.3,2598.0,0.3887]
[1727711880992,3.2078,2598.5,2598.0,0.3887]
[1727711881289,0.38484,2598.4,2598.1,0.3829]
[1727711881792,3.2078,2598.5,2598.1,0.3829]
[1727711881993,0.38485,2598.3,2598.1,0.3829]
[1727711882192,3.2078,2598.5,2598.1,0.3829]
[1727711882388,3.59262,2598.5,2598.2,0.38486]
[1727711882590,3.59262,2598.5,2598.1,0.3829]
[1727711882893,3.2078,2598.5,2598.2,0.38486]
[1727711883089,3.2078,2598.5,2598.1,0.3829]
[1727711883288,3.2078,2598.5,2598.3,0.38483]
[1727711883489,3.2078,2598.5,2598.4,0.38483]
[1727711883690,2.96,2598.6,2598.3,0.38483]
[1727711883892,2.96,2598.6,2598.4,0.38483]
[1727711884092,3.2078,2598.5,2598.4,0.38481]
[1727711884396,3.2078,2598.5,2598.1,0.3829]
[1727711884587,3.2078,2598.5,2598.3,0.38483]
[1727711884782,3.2078,2598.5,2598.1,0.3829]
[1727711884991,0.38483,2598.4,2598.1,0.76776]
[1727711885191,0.38483,2598.4,2598.2,0.38486]
[1727711885384,0.38483,2598.4,2598.1,0.76776]
[1727711885593,2.96,2598.3,2598.1,0.3829]
[1727711886096,2.96,2598.3,2598.2,0.38486]
[1727711886305,2.96,2598.3,2598.1,0.3829]
[1727711886489,3.2078,2598.5,2598.1,0.3829]
[1727711886490,3.2078,2598.5,2598.4,0.38483]
[1727711887198,3.2078,2598.5,2598.4,4.23363]
[1727711888307,6.1678,2599.0,2598.4,3.8488]
[1727711888593,3.2078,2599.0,2598.9,0.38475]
[1727711889697,3.34471,2599.3,2598.9,0.38475]
[1727711889698,3.3447,2599.3,2599.2,0.38471]
[1727711889899,2.96,2599.3,2599.2,0.38471]
[1727711890691,2.96,2599.3,2599.0,0.38473]
[1727711890994,3.2078,2599.1,2599.0,0.38473]
[1727711891296,3.59252,2599.1,2599.0,0.38473]
[1727711891489,3.2078,2599.1,2599.0,0.38473]
[1727711891695,2.96,2599.3,2598.7,0.3886]
[1727711891899,2.96,2599.3,2599.2,0.38471]
[1727711892397,0.38472,2599.2,2598.7,1.35055]
[1727711892599,6.86,2599.4,2598.8,0.96191]
[1727711892793,6.86,2599.4,2599.3,0.38469]
[1727711893191,3.6522,2599.4,2599.3,0.38469]
[1727711893596,3.6522,2599.4,2599.3,4.23189]
[1727711893901,3.6522,2599.4,2599.3,10.23189]
[1727711894199,2.96,2599.9,2599.3,9.8472]
[1727711894398,2.96,2599.9,2599.8,0.38462]
[1727711894790,3.2078,2600.2,2599.2,3.2078]
[1727711894993,3.2078,2600.2,2599.1,0.4924007]
[1727711894994,3.59237,2600.2,2600.0,0.38458]
[1727711895194,3.59237,2600.2,2599.7,0.38463]
[1727711895195,0.38463,2599.8,2599.7,0.38463]
[1727711895497,0.38464,2599.7,2599.5,0.38466]
[1727711895700,0.38465,2599.6,2599.5,0.38466]
[1727711895886,0.38464,2599.7,2599.5,0.38465]
[1727711896096,3.2078,2599.6,2599.1,0.3811]
[1727711896400,2.96,2599.2,2599.1,0.38472]
[1727711896995,0.38473,2599.1,2598.8,0.38476]
[1727711897202,2.96,2598.9,2598.8,0.38476]
[1727711897498,2.96,2598.9,2598.5,3.2078]
[1727711897803,2.96,2598.9,2598.7,0.38478]
[1727711898099,2.96,2598.9,2598.8,0.38477]
[1727711898394,2.96,2598.9,2598.4,0.7867]
[1727711898395,6.1678,2598.9,2598.4,0.7867]
[1727711898598,0.3668,2599.2,2598.9,0.38475]
[1727711898599,6.91932,2599.2,2598.9,0.38475]
[1727711899104,6.5346,2599.2,2598.9,0.38475]
[1727711899495,6.5346,2599.2,2599.0,0.38473]
[1727711899696,3.2078,2599.2,2598.4,0.7867]
[1727711899902,0.4017,2599.6,2599.4,0.38468]
[1727711900197,0.4017,2599.6,2599.5,0.38467]
[1727711900405,6.55241,2599.9,2599.7,0.38463]
[1727711900406,6.1678,2599.9,2599.7,0.38463]
[1727711900900,0.4,2600.1,2599.9,0.38461]
[1727711901094,0.4,2600.1,2599.9,0.3846]
[1727711901408,0.3846,2600.0,2599.6,0.38464]
[1727711901601,2.96,2599.9,2599.6,0.38464]
[1727711901902,0.38463,2599.8,2599.4,0.38468]
[1727711902098,6.1678,2599.6,2599.1,0.4007]
[1727711902300,6.1678,2599.6,2599.2,4.32530182]
[1727711902496,6.1678,2599.6,2599.1,0.4007]
[1727711902692,0.38467,2599.5,2599.1,0.78542]
[1727711902999,0.38467,2599.5,2599.1,0.38471]
[1727711903208,6.55245,2599.6,2599.2,0.3847]
[1727711903898,6.55245,2599.6,2598.7,0.7743]
[1727711903899,0.38468,2599.5,2599.1,0.38472]
[1727711904098,1.19898,2599.5,2599.1,0.38472]
[1727711904298,0.8143,2599.5,2599.2,0.38471]
[1727711904701,0.8143,2599.5,2598.7,0.7743]
[1727711904897,0.8143,2599.5,2599.3,0.38469]
[1727711905200,0.3848,2598.7,2598.3,0.38484]
[1727711905405,0.38478,2598.8,2598.4,0.38482]
[1727711905598,0.38478,2598.8,2598.3,0.38483]
[1727711905796,0.75428,2598.8,2598.3,0.38483]
[1727711906001,3.7156,2598.8,2598.2,0.3726]
[1727711906205,3.7156,2598.8,2598.5,0.3848]
[1727711906505,4.10037,2598.8,2598.4,0.38483]
[1727711906711,4.10037,2598.8,2598.2,0.3726]
[1727711906712,3.7156,2598.8,2598.2,0.3726]
[1727711906906,3.7156,2598.8,2598.4,0.38481]
[1727711907297,4.10037,2598.8,2598.4,0.38481]
[1727711908101,3.7156,2598.8,2598.5,0.38481]
[1727711909001,0.7556,2598.8,2598.3,0.3879]
[1727711909203,3.6093,2598.9,2598.3,0.3879]
[1727711909403,0.99155751,2599.2,2598.4,8.08046861]
[1727711909603,3.9556,2599.3,2598.9,0.38475]
[1727711909604,4.3403,2599.3,2598.9,0.38475]
[1727711909799,3.9556,2599.3,2598.4,9.28403397]
[1727711910005,3.9556,2599.3,2598.4,0.96206]
[1727711910006,0.38472,2599.2,2598.4,0.96206]
[1727711910205,0.38472,2599.2,2598.8,0.38476]
[1727711910506,4.3403,2599.3,2598.9,0.38475]
[1727711910708,0.38471,2599.2,2598.8,0.38476]
[1727711911010,4.34031,2599.3,2598.9,0.38475]
[1727711911214,3.9556,2599.3,2599.0,0.38473]
[1727711911410,3.9556,2599.3,2598.6,0.962]
[1727711911615,4.3403,2599.3,2598.9,0.38474]
[1727711912202,3.2078,2599.3,2598.3,3.5957]
[1727711912407,3.2078,2599.6,2599.0,4.98980682]
[1727711912610,3.2078,2599.6,2599.5,0.38467]
[1727711912812,3.2078,2599.6,2599.5,3.8472]
[1727711913005,3.59246,2599.6,2599.2,0.3847]
[1727711913206,3.2078,2599.6,2599.1,0.7713]
[1727711913403,0.3847,2599.3,2599.1,0.387]
[1727711913805,3.34469,2599.4,2599.1,0.387]
[1727711914007,2.96,2599.4,2599.1,0.387]
[1727711914207,6.1678,2599.4,2598.9,3.2078]
[1727711914409,0.38471,2599.3,2598.9,3.2078]
[1727711914605,0.3921,2599.2,2598.9,3.2078]
[1727711914808,1.55962,2599.2,2598.9,3.2078]
[1727711915011,0.38473,2599.1,2598.9,3.2078]
[1727711915216,1.1749,2599.2,2598.9,3.2078]
[1727711915406,1.1749,2599.2,2598.9,3.59255]
[1727711915610,1.1749,2599.2,2598.9,3.2078]
[1727711915917,1.1749,2599.2,2599.0,0.38474]
[1727711916315,1.1749,2599.2,2599.1,0.38472]
[1727711916617,1.1749,2599.2,2599.0,0.38474]
[1727711917217,0.38481,2598.6,2598.2,1.62620767]
[1727711917418,2.96,2598.7,2598.2,0.119]
[1727711917606,3.59262,2598.5,2598.2,0.119]
[1727711917807,3.2078,2598.5,2598.2,0.119]
[1727711918317,0.7949,2598.6,2598.2,0.119]
[1727711918519,0.38481,2598.5,2598.2,0.119]
[1727711918816,0.7949,2598.6,2598.2,0.119]
[1727711918817,1.17971,2598.6,2598.2,0.119]
[1727711919023,0.7949,2598.6,2598.3,0.38484]
[1727711919209,0.38482,2598.5,2598.2,0.119]
[1727711919415,0.7949,2598.6,2598.2,0.119]
[1727711919621,0.7949,2598.6,2598.3,0.38483]
[1727711920127,0.7949,2598.6,2598.2,0.119]
[1727711920311,0.3917,2598.6,2598.3,0.38483]
[1727711920516,0.3917,2598.6,2598.3,0.38484]
[1727711920716,0.3917,2598.6,2598.2,0.119]
[1727711921425,0.7765,2598.6,2598.3,0.38483]
[1727711921622,0.3917,2598.6,2598.4,0.38482]
[1727711921924,0.3917,2598.6,2598.5,0.38481]
[1727711922225,3.2078,2598.8,2598.6,0.38479]
[1727711922431,3.2078,2598.8,2598.3,0.3879]
[1727711922617,3.2078,2598.8,2598.7,0.38478]
[1727711923433,3.611,2599.1,2598.8,0.38477]
[1727711923618,3.99573,2599.1,2598.4,0.96205]
[1727711923822,0.38474,2599.0,2598.7,0.38477]
[1727711924026,3.611,2599.1,2598.8,0.38476]
[1727711924223,3.99574,2599.1,2598.8,0.38476]
[1727711924723,0.38474,2599.0,2598.8,0.38476]
[1727711925031,0.38474,2599.0,2598.5,0.3921]
[1727711925032,3.611,2599.1,2599.0,0.38474]
[1727711925634,3.2078,2599.1,2599.0,0.38474]
[1727711926336,3.2078,2599.1,2598.6,3.2078]
[1727711926531,3.2078,2599.1,2598.6,0.962]
[1727711926840,3.2078,2599.1,2599.0,0.38474]
[1727711927749,3.2078,2599.1,2598.5,0.3921]
[1727711928039,3.2078,2599.1,2599.0,0.38474]
[1727711929440,0.7897,2599.3,2598.6,0.96199]
[1727711929645,0.7897,2599.3,2599.1,0.38472]
[1727711930035,0.7897,2599.3,2599.1,0.38471]
[1727711930344,0.405,2599.3,2599.2,0.38471]
[1727711930532,0.405,2599.3,2598.8,0.96193]
[1727711930837,0.405,2599.3,2599.2,0.38471]
[1727711931237,0.405,2599.3,2598.8,0.96193]
[1727711931438,0.7897,2599.3,2599.1,0.38472]
[1727711931739,0.7897,2599.3,2598.8,0.96193]
[1727711931945,0.7897,2599.3,2599.1,0.38472]
[1727711932443,4.2522,2599.3,2598.5,1.89930767]
[1727711932746,0.38475,2599.0,2598.8,0.38477]
[1727711932934,0.38476,2598.9,2598.7,0.38478]
[1727711933136,3.2078,2599.1,2598.5,0.3921]
[1727711933331,0.38476,2598.9,2598.7,0.38478]
[1727711933535,3.2078,2599.1,2598.7,0.38478]
[1727711933536,0.38474,2599.0,2598.7,0.38478]
[1727711933746,0.3763,2598.9,2598.8,0.38476]
[1727711935043,3.59254,2599.1,2598.9,0.38475]
[1727711935239,3.2078,2599.1,2599.0,0.38474]
[1727711937240,3.2078,2599.5,2599.4,0.38468]
[1727711938147,1.36715751,2599.8,2599.7,0.38464]
[1727711938343,0.3756,2599.8,2599.7,0.38464]
[1727711939343,3.2078,2599.9,2599.8,0.38462]
[1727711939544,2.16464751,2600.1,2599.9,0.3846]
[1727711939746,2.16464751,2600.1,2599.7,0.38464]
[1727711939948,2.16464751,2600.1,2599.9,0.3846]
[1727711940150,1.78005751,2600.1,2599.6,0.3741]
[1727711940344,0.96149,2600.0,2599.1,6.06471767]
[1727711940547,0.38465,2599.7,2599.5,0.38466]
[1727711940748,0.38465,2599.6,2599.5,0.38467]
[1727711940948,0.38465,2599.7,2599.5,0.38467]
[1727711941146,5.16087751,2599.9,2599.5,0.38467]
[1727711941339,0.38466,2599.6,2599.3,0.38469]
[1727711941538,0.38466,2599.6,2599.1,0.3879]
[1727711941539,0.99155751,2599.8,2599.1,0.3879]
[1727711941850,1.37618751,2599.8,2599.6,0.38465]
[1727711942052,1.37618751,2599.8,2599.2,0.96178]
[1727711942354,1.37618751,2599.8,2599.5,0.38466]
[1727711942540,0.99155751,2599.8,2599.2,0.96178]
[1727711942742,0.38467,2599.5,2599.2,0.38471]
[1727711943150,0.38467,2599.5,2599.3,0.38469]
[1727711943354,0.38468,2599.4,2599.2,0.3847]
[1727711943549,3.2078,2599.3,2599.1,0.38471]
[1727711943755,3.2078,2599.3,2598.9,0.3741]
[1727711944057,3.2078,2599.3,2599.1,0.38472]
[1727711944352,3.2078,2599.3,2598.7,3.2078]
[1727711944565,3.2078,2599.3,2598.5,0.119]
[1727711944566,0.3848,2598.7,2598.5,0.119]
[1727711944748,0.7594,2598.6,2598.5,0.119]
[1727711945051,0.38482,2598.5,2598.1,0.38487]
[1727711945257,2.96,2598.4,2597.7,0.10875068]
[1727711945560,2.96,2598.0,2597.5,1.50720767]
[1727711945855,0.38492,2597.8,2597.1,1.50720767]
[1727711946152,3.2078,2597.2,2596.9,0.38505]
[1727711946351,0.99155751,2597.7,2597.1,3.2078]
[1727711946653,3.2078,2597.5,2597.1,4.11725901]
[1727711946850,3.2078,2597.5,2596.7,0.64274808]
[1727711947049,3.2078,2597.5,2596.5,0.107538]
[1727711947050,3.2078,2597.2,2596.5,0.107538]
[1727711947251,0.38503,2597.1,2596.4,0.38512]
[1727711947453,3.2078,2596.9,2596.0,4.71500767]
[1727711947655,2.96,2597.0,2596.0,4.71500767]
[1727711947656,3.2078,2596.4,2596.0,1.50720767]
[1727711947852,3.2078,2596.7,2596.2,0.38514]
[1727711948152,3.2078,2596.7,2595.8,0.96304]
[1727711948345,2.96,2596.6,2595.3,5.11220767]
[1727711948657,1.76155751,2597.5,2597.1,0.38502]
[1727711948850,0.99155751,2597.5,2597.0,0.38503]
[1727711949050,3.5825,2597.6,2597.1,0.38501]
[1727711949249,3.5825,2597.6,2596.6,4.55227837]
[1727711949853,3.96745,2597.6,2597.0,0.38503]
[1727711950057,3.5825,2597.6,2596.6,5.51501837]
[1727711950262,3.96746,2597.6,2597.0,0.38503]
[1727711950557,3.5825,2597.6,2597.2,0.385]
[1727711950956,3.5758,2598.0,2596.9,3.2078]
[1727711951160,0.368,2598.0,2597.8,0.3849]
[1727711951362,0.368,2598.0,2597.3,0.96248]
[1727711951680,3.5758,2598.0,2597.7,0.38493]
[1727711952254,3.5758,2598.0,2597.2,4.15551854]
[1727711952455,3.5758,2598.0,2596.9,0.96263]
[1727711952758,3.5758,2598.0,2596.6,1.07091625]
[1727711952759,3.2078,2597.6,2597.0,4.15551854]
[1727711953064,0.38502,2597.2,2596.6,0.38509]